Cogmind - Beta 13 @@@ ROGUE MODE // 2024.04.23 @ 21:36:20 Player: Penitent Scrub Result: Destroyed by Y-45 Defender with Beam Rifle Performance ------------- Evolutions (2) 1000 Regions Visited (3) 600 Robots Destroyed (19) 95 Value Destroyed (375) 375 Prototype IDs (2) 40 Alien Tech Used (0) 0 Bonus (0) 0 TOTAL SCORE: 2110 Bonus ------- None Cogmind --------- Core Integrity 0/550 Matter 300/300 Energy 100/100 System Corruption 1% Temperature Cool (9) Movement Core (50) Location -8/Materials Parts ------- > --- POWER (1) -------- (None) > --- PROPULSION (3) --- (None) > --- UTILITY (3) ------ (None) > --- WEAPON (4) ------- (None) > --- INVENTORY (5) ---- Heat Sink High-capacity Storage Unit Welding Torch Peak State ------------ > --- POWER ------------ (None) > --- PROPULSION ------- Wheel > --- UTILITY ---------- Structural Scanner > --- WEAPON ----------- Pulse Rifle Light Assault Rifle Light Assault Rifle Autogun > --- INVENTORY -------- Heat Sink High-capacity Storage Unit Welding Torch Plasma Cutter [Rating: 9] Favorites ----------- Power Light Ion Engine Engine Light Ion Engine Propulsion Aluminum Leg Leg Aluminum Leg Wheel Wheel Utility Heat Sink Device Heat Sink Storage Large Matter Pod Processor Targeting Computer Protection Light Armor Plating Weapon Light Assault Rifle Energy Gun Particle Gun Energy Cannon Beam Cannon Ballistic Gun Light Assault Rifle Launcher Rocket Launcher Special Weapon Plasma Cutter Special Melee Weapon Datajack Build | -11 -10 -9 -8 ------- Run | Yrd Mat Mat Mat Slots Evolved 4 | . . 2 2 Power . | . . . . Propulsion 1 | . . 1 . Utility 1 | . . . 1 Weapon 2 | . . 1 1 Parts Attached 34 | 5 20 7 2 Power 3 | 1 2 . . Engine 3 | 1 2 . . Core . | . . . . Reactor . | . . . . Propulsion 6 | 2 3 1 . Treads . | . . . . Leg 3 | . 3 . . Wheel 3 | 2 . 1 . Hover . | . . . . Flight . | . . . . Utility 8 | . 6 2 . Device 4 | . 3 1 . Storage 2 | . 2 . . Processor 1 | . . 1 . Hackware . | . . . . Protection 1 | . 1 . . Artifact . | . . . . Weapon 17 | 2 9 4 2 Energy Gun 4 | 1 2 . 1 Energy Cannon 1 | . 1 . . Ballistic Gun 8 | 1 5 2 . Ballistic Cannon . | . . . . Launcher 1 | . . 1 . Special Weapon 2 | . . 1 1 Impact Weapon . | . . . . Slashing Weapon . | . . . . Piercing Weapon . | . . . . Special Melee Weapon 1 | . 1 . . Unidentified Prototypes . | . . . . Parts Lost 21 | . 10 2 9 Power 1 | . 1 . . Propulsion 6 | . 3 1 2 Utility 5 | . 3 . 2 Weapon 9 | . 3 1 5 Highest Loss Streak 8 | . 8 1 7 To Critical Strikes . | . . . . Average Slot Usage (%) 65 | . 74 54 33 Engine 6 | . 9 . . Leg 11 | . 12 15 1 Wheel 5 | . 7 1 5 Device 10 | . 14 2 8 Processor 2 | . . 6 3 Protection 2 | . 4 . . Energy Gun 4 | . 7 . 1 Energy Cannon 1 | . 2 . . Ballistic Gun 17 | . 14 24 14 Naked Turns 30 | . 14 . 16 Heaviest Build 13 | 7 13 8 7 Greatest Support 20 | 20 20 20 10 Greatest Overweight (x) 3 | . 3 . 2 Average Overweight (x) . | . . . . Largest Inventory Capacity 20 | 5 20 5 5 Average Capacity 5 | 5 5 5 5 Most Carried 5 | 2 5 5 5 Average Carried 3 | . 3 3 3 Final Capacity 5 | 5 5 5 5 Final Carried 4 | 1 3 4 3 Class Distribution -------------------- 78% | Mutant 20% | Gunner Dominant Class ---------------- Mutant | -10/Materials Gunner | -9/Materials Mutant | -8/Materials Resources | -11 -10 -9 -8 ----------- Run | Yrd Mat Mat Mat Matter Collected 696 | 247 246 203 . Remotely . | . . . . Salvage Created 624 | 42 330 252 . Parts 48 | 2 25 21 . Haulers Intercepted 1 | . 1 . . Recyclers Shooed . | . . . . Parts Field Recycled . | . . . . Retrieved Matter . | . . . . Parts Self-Destructed . | . . . . Prevented . | . . . . Kills | -11 -10 -9 -8 ------- Run | Yrd Mat Mat Mat Combat Hostiles Destroyed 13 | 1 8 4 . Melee 2 | . 2 . . Guns 9 | . 5 4 . AOE 2 | 1 1 . . Classes Destroyed 6 | 1 3 2 . Builder 1 | . . 1 . Hauler 1 | . 1 . . Recycler 2 | . . 2 . Watcher 2 | . 1 1 . Swarmer 6 | . 3 3 . Grunt 7 | 1 5 1 . Best Kill Streak 4 | 1 4 3 . Combat Bots Only 3 | 1 3 3 . Max Kills in Single Turn 2 | 1 1 2 . Gunslinging 1 | . . 1 . Exploded 1 | 1 1 . . Melee 1 | . 1 . . Uniques/NPCs Destroyed . | . . . . Combat | -11 -10 -9 -8 -------- Run | Yrd Mat Mat Mat Hostile Shots Fired 198 | 1 125 10 62 Missed 56 | . 36 3 17 Damage Taken 2053 | 12 1053 88 900 Core 829 | . 244 24 561 Absorbed by Shields . | . . . . Core Remaining (%) 65 | 100 2 94 . Volleys Fired 61 | 1 37 15 8 Largest 3 | 2 2 3 3 Hottest 125 | 60 125 76 103 Shots Fired 110 | 2 62 35 11 Gun 102 | 2 59 31 10 Cannon 3 | . 3 . . Launcher 3 | . . 3 . Special 2 | . . 1 1 Kinetic 80 | 1 45 31 3 Thermal 22 | . 13 1 8 Explosive 3 | . . 3 . Electromagnetic 5 | 1 4 . . Robot Hit Streak 8 | 2 6 5 8 Robot Miss Streak 6 | . 6 5 1 Penetration Max . | . . . . Secondary Targets 1 | . . 1 . Max Gunslinging Chain 1 | . . 1 . Shots Hit Robots 59 | 2 29 19 9 Core Hits 34 | 1 19 12 2 Critical Kills . | . . . . Critical Parts Destroyed . | . . . . Critical Strikes 1 | . 1 . . Burn 1 | . 1 . . Melee Attacks 1 | . 1 . . Impact . | . . . . Slashing . | . . . . Piercing . | . . . . Sneak Attacks . | . . . . Combat Hostiles . | . . . . Follow-up Attacks . | . . . . Damage Inflicted 1148 | 63 519 410 156 Guns 718 | 15 364 216 123 Cannons 35 | . 35 . . Explosions 331 | 48 92 191 . Melee . | . . . . Ramming 64 | . 28 3 33 Kinetic 491 | . 252 216 23 Thermal 350 | 48 202 . 100 Explosive 191 | . . 191 . Electromagnetic 52 | 15 37 . . Impact . | . . . . Slashing . | . . . . Piercing . | . . . . Highest Corruption 4 | . 4 . 1 Average Corruption 3 | . 3 . 1 Corruption Purged . | . . . . Corruption Blocked . | . . . . Effects 12 | . 12 . . Message Errors 2 | . 2 . . Matter Fused 4 | . 4 . . Heat Flow Errors 3 | . 3 . . Data Loss (minor) 1 | . 1 . . Data Loss (major) 1 | . 1 . . Weapon Failures 1 | . 1 . . Overload Shots . | . . . . Overflow Damage 9 | . . 9 . Projectiles . | . . . . Explosions 9 | . . 9 . Melee . | . . . . Knockbacks 1 | . . . 1 Impact 1 | . . . 1 Kinetic . | . . . . Secondary . | . . . . Self-Inflicted Damage 71 | . 23 34 14 Shots 2 | . 1 1 . Rammed 15 | . 3 . 12 Targets Rammed 22 | . 7 3 12 Kicked 7 | . 4 3 . Crushed . | . . . . Highest Temperature 314 | . 314 20 70 Average Temperature 119 | . 149 12 31 Received Heat Transfer 792 | 6 501 6 279 Siege Activations . | . . . . Robots Corrupted . | . . . . Combat Hostiles . | . . . . Parts Fried . | . . . . Impact Corruptions . | . . . . Robots Melted . | . . . . Combat Hostiles . | . . . . Parts Melted . | . . . . Heat Transferred 743 | 50 471 . 222 Parts Sabotaged . | . . . . Parts Stolen . | . . . . Parts Stripped . | . . . . Power Chain Reactions 2 | 1 1 . . Alert | -11 -10 -9 -8 ------- Run | Yrd Mat Mat Mat Peak Influence 184 | 20 184 179 20 Initial 21 | . 13 21 . Average 53 | 4 54 73 6 Maximum Alert Level . | . . . . Low Security (%) 100 | 100 100 100 100 Level 1 . | . . . . Level 2 . | . . . . Level 3 . | . . . . Level 4 . | . . . . Level 5 . | . . . . High Security . | . . . . Max Security . | . . . . Squads Dispatched 3 | . 2 1 . Investigation 1 | . . 1 . Extermination . | . . . . Reinforcement 2 | . 2 . . Assault . | . . . . Garrison . | . . . . Intercept . | . . . . Searches Triggered . | . . . . Construction Impeded . | . . . . Haulers Reinforced . | . . . . Active Scanning Responses . | . . . . Cargo Convoy Interrupts . | . . . . Stealth | -11 -10 -9 -8 --------- Run | Yrd Mat Mat Mat Distress Signals 2 | . 1 1 . Communications Jammed . | . . . . Distress Signals . | . . . . Times Spotted 32 | 1 19 7 5 Peak Tracking Total 5 | 1 5 3 5 Tactical Retreats 1 | . 1 . . Traps | -11 -10 -9 -8 ------- Run | Yrd Mat Mat Mat Traps Triggered 2 | . 2 . . Indirectly . | . . . . Trap Hack Attempts . | . . . . Triggered . | . . . . Disarmed . | . . . . Reprogrammed . | . . . . Reused . | . . . . Traps Extracted . | . . . . Installed . | . . . . Triggered . | . . . . Machines | -11 -10 -9 -8 ---------- Run | Yrd Mat Mat Mat Machines Disabled . | . . . . Max in Single Turn . | . . . . Machines Repaired . | . . . . Machines Dismantled 1 | . . 1 . Machines Sabotaged . | . . . . Overloaded Fab Kills . | . . . . Hacking | -11 -10 -9 -8 --------- Run | Yrd Mat Mat Mat Machines Accessed 7 | . 5 2 . Terminals 5 | . 4 1 . Fabricators . | . . . . Repair Stations . | . . . . Recycling Units 1 | . 1 . . Scanalyzers 1 | . . 1 . Garrison Access . | . . . . Total Hacks 22 | . 16 6 . Successful 12 | . 8 4 . Failed 10 | . 8 2 . Catastrophic . | . . . . Database Lockouts . | . . . . Manual 2 | . . . 2 Terminals 15 | . 12 3 . Fabricators . | . . . . Repair Stations . | . . . . Recycling Units 4 | . 4 . . Scanalyzers 3 | . . 3 . Garrison Access . | . . . . Terminal Hacks 10 | . 7 3 . Record 3 | . 3 . . Prototype ID Bank 1 | . 1 . . Alert Level 2 | . 1 1 . Locate Traps 1 | . 1 . . Maintenance Status 1 | . 1 . . Hauler Manifests 2 | . . 2 . Fabricator Hacks . | . . . . Repair Station Hacks . | . . . . Recycling Unit Hacks 1 | . 1 . . Recycle Component 1 | . 1 . . Scanalyzer 1 | . . 1 . Insert Component 1 | . . 1 . Garrison Access Hacks . | . . . . Unauthorized Hacks . | . . . . Terminals . | . . . . Fabricators . | . . . . Repair Stations . | . . . . Recycling Units . | . . . . Scanalyzers . | . . . . Garrison Access . | . . . . Data Cores Recovered . | . . . . Used . | . . . . Hacking Detections 4 | . 3 1 . Full Trace Events 3 | . 2 1 . Feedback Events . | . . . . Feedback Blocked . | . . . . Robot Schematics Acquired . | . . . . Robots Built . | . . . . Authchips . | . . . . Time . | . . . . Total Robot Build Rating . | . . . . Part Schematics Acquired . | . . . . Parts Built . | . . . . Authchips . | . . . . Time . | . . . . Total Part Build Rating . | . . . . Parts Repaired . | . . . . Time . | . . . . Parts Recycled 1 | . 1 . . Recycled Matter . | . . . . Retrieved Matter . | . . . . Retrieved Components . | . . . . Parts Scanalyzed . | . . . . Part Schematics Acquired . | . . . . Parts Damaged . | . . . . Bothacking | -11 -10 -9 -8 ------------ Run | Yrd Mat Mat Mat Used RIF Installer . | . . . . Robots Hacked 1 | . 1 . . Non-combat . | . . . . Combat 1 | . 1 . . Robot Hacks Applied 1 | . 1 . . parse_system 1 | . 1 . . Relay Couplers Released . | . . . . Fabnet Peak Effective % . | . . . . Robots Rewired . | . . . . Allies Hacked . | . . . . Hacks Repelled . | . . . . Allies | -11 -10 -9 -8 -------- Run | Yrd Mat Mat Mat Total Allies . | . . . . Largest Group . | . . . . Highest-Rated Group . | . . . . Highest-Rated Ally . | . . . . Total Orders . | . . . . Ally Attacks . | . . . . Total Damage . | . . . . Kills . | . . . . Allies Corrupted . | . . . . Allies Melted . | . . . . Intel | -11 -10 -9 -8 ------- Run | Yrd Mat Mat Mat Robot Analysis Total . | . . . . Derelict Logs Recovered . | . . . . Drone Launches . | . . . . Drone Recoveries . | . . . . Exploration | -11 -10 -9 -8 ------------- Run | Yrd Mat Mat Mat Turns Passed 1565 | 70 935 419 141 Spaces Moved 1227 | 80 669 319 159 Core 123 | 26 17 . 80 Treads . | . . . . Legs 601 | . 370 231 . Wheels 503 | 54 282 88 79 Hover . | . . . . Flight . | . . . . Fastest Speed 50 | 50 50 80 50 Average Speed 104 | 70 115 108 66 Slowest Speed 200 | 80 200 120 150 Overloaded Moves . | . . . . Propulsion Burnouts . | . . . . Robots Hopped . | . . . . Cave-ins Triggered . | . . . . Exploration Rate (%) 28 | 6 73 23 11 Regions Visited 3 Branch Regions . Pre-discovered Areas . | . . . . Known Exits Taken . | . . . . Unknown Exits Taken 3 | 1 1 1 . Scrap Searched . | . . . . Spaces Dug . | . . . . Terrain Destroyed 37 | . 3 34 . Melee . | . . . . Projectile . | . . . . AOE 37 | . 3 34 . Terrain Rammed . | . . . . Walls Destroyed . | . . . . Machines Disabled . | . . . . Actions | -11 -10 -9 -8 --------- Run | Yrd Mat Mat Mat Total 1395 | 91 766 355 183 Wait 5 | . 4 . 1 Move 1224 | 79 668 318 159 Hop . | . . . . Pick Up 33 | 6 19 7 1 Fast Attach . | . . . . Attach 24 | 5 12 5 2 Detach 3 | . 3 . . Swap 10 | . 8 2 . Drop 8 | . 7 1 . Fire 61 | 1 37 15 8 Melee 1 | . 1 . . Ram 15 | . 3 . 12 Kick 7 | . 4 3 . Crush . | . . . . Escape Stasis . | . . . . Rewire . | . . . . Trap . | . . . . Miscellaneous 4 | . . 4 . Route ------- -11/Scrapyard -10/Materials (discovered 3 exits: *Mat x2 / [*Min]) -9/Materials -8/Materials History --------- Turn | Location | Event 2 | -11/Scrapyard | Met Revision 17 51 | -11/Scrapyard | Discovered new exit (range 8) 71 | -11/Scrapyard | Entered Materials 224 | -10/Materials | Discovered new exit (range 5) 304 | -10/Materials | Build established: Mutant 420 | -10/Materials | Discovered new exit (range 15) 529 | -10/Materials | Discovered new exit (range 15) 737 | -10/Materials | Core integrity fell below 50% 801 | -10/Materials | Lost 8 parts (1p1n3u3w) 903 | -10/Materials | Core integrity fell below 20% 1006 | -10/Materials | Entered another Materials area 1006 | -9/Materials | Evolved 2 slots: Propulsion x1, Weapon x1 1414 | -9/Materials | Discovered new exit (range 11) 1425 | -9/Materials | Entered another Materials area 1425 | -8/Materials | Evolved 2 slots: Utility x1, Weapon x1 1517 | -8/Materials | Core integrity fell below 50% 1549 | -8/Materials | Lost 7 parts (1n1u5w) 1549 | -8/Materials | Core integrity fell below 20% 1566 | -8/Materials | Destroyed by Y-45 Defender with Beam Rifle Last Messages --------------- per-turn energy generation is a net positive, and consider deactivating power-draining parts if not. K-01 Serf collects debris. Plasma Cutter destroyed. Slammed into L-31 Rogue. K-01 Serf collects debris. Slammed into L-31 Rogue. Structural Scanner broken. Destabilizing: Short circuit. K-01 Serf collects debris. Slammed into L-31 Rogue. L-31 Rogue knocked back. Slammed into L-31 Rogue. Broken Structural Scanner destroyed. System corrupted by crushing effect (+1). Slammed into L-31 Rogue. Connecting with Scanalyzer... Current location identified: Materials [Achievement: First Step to Greatness] Map ----- +----------------------------------------------------+ | | | | | | | | | | | | | | | | | | | | | | | ?????????????????????????????????????????????????? | | ?????????????????????????????????????????????????? | | ?????????????????????????????????????????????????? | | ?????????????????????????????????????????????????? | | ?????????????????????????????????????????????????? | | ??????????????????????????????[??????????????????? | | ????????????????????????????? ? #?????????????? | | ????????????????????????###+# #?????????????? | | ????????????????????????# #?????????????? | | ????????????????????????# ??????????????? | | ????????????????????????#! """ #???????????????? | | ????????????????????????# "G #???????????????? | | ?????????????###+########[ """ #???????????????? | | ?????????? #???????????????? | | ?????????? a @ #???????????????? | | ?????????????????+####### u #######?????????? | | ????????????????????????# ????????? | | ????????????????????????# ????????? | | ????????????????????????# ????????? | | ????????????????????????# ### #########?????????? | | ????????????????????????# #?? #?????????????????? | | ????????????????????????# #???#?????????????????? | | ????????????????????????# ### ######????????????? | | ????????????????????????# ###+##### ????????????? | | ?????????????############ + # ????????????? | | ?????????????#%%%%% # # "S # ????????????? | | ?????????????#%""" """ # # """ * # ????????????? | | ?????????????# """ """ #Y # "" # ????????????? | | ?????????????# "S """ / # # ????????????? | | ?????????????# """ # + = "" # ????????????? | | ?????????????# "" #### %%"" # ????????????? | | ?????????????# #### "" ##????????????? | | ?????????????############### ##????????????? | | ???????????????????######### ##????????????? | | ??????????????????? # ## / ??????????? | | ??????????????????? # ##/######### ??????????? | | ??????????????????? # ## ######### ? ##??????? | | ??????????????????? # ## ##????????? ##??????? | | ??????????????????? # """ ## #########? ## ?????? | +----------------------------------------------------+ Best States ------------- Heat Dissipation 35 Energy Generation 10 Energy Capacity 125 Matter Stores 300 Matter Capacity 450 Sight Range 16 Terrain Scan Range 14 Terrain Scan Density 10 Armor Coverage 150 Evasion (%) 55 Targeting Accuracy 5 Item Schematics ----------------- None Robot Schematics ------------------ None Fabricated ------------ Nothing Alien Tech Used ----------------- None Achievements -------------- Close Call First Step to Greatness Fist Fight Loot Pinata One Hack Too Far Shopping List Storm Trooper Uninvited Guest Challenges ------------ None Game ------ Seed RemotePointyFilter Manual? 0 Play Time 00:51:20 Cumulative 0.8 hours Start 2024.04.23 @ 20:37:54 End 2024.04.23 @ 21:36:20 Sessions 1 Manual Loads 0 Difficulty Rogue Special Mode None Game No. 1 Rogue 1 Adventurer 0 Explorer 0 Win Type - Total 0 Types 0/0/0/0/0/0/0/0/0 Lore% 0 Gallery% 2 Achievement% 3 Wizard Run 0 Options --------- Layout 1 ASCII 0 Keyboard 0 Movement Arrows Keybinds 0 Fullscreen 1 Font 24/Terminus Map View 50x35 Zoom Use 31% Tactical HUD 0 Map Filters NONE Filters NONE Steam 1 RUN: b08e53d6-c590-4f8b-9dba-f025617bb4cd